lending/lending_fUSD_20240207
["ID","MTS","AMOUNT","RATE_DAILY","PERIOD"]
[313421022,1707330511306,-542.50185696,0.00046986,31]
[313421023,1707330511331,-563.28,0.00046986,31]
[313421024,1707330511355,-500.0,0.00046986,31]
[313421025,1707330511380,-500.0,0.00046986,31]
[313421026,1707330511405,-577.25,0.00046986,31]
[313421027,1707330511443,-500.0,0.00046986,31]
[313421028,1707330511469,-500.0,0.00046986,31]
[313421029,1707330511494,-500.0,0.00046986,31]
[313421030,1707330511517,-500.0,0.00046986,31]
[313421031,1707330511541,-500.0,0.00046986,31]
[313421032,1707330511566,-534.52,0.00046986,31]
[313421033,1707330511591,-500.0,0.00046986,31]
[313421034,1707330511615,-500.0,0.00046986,31]
[313421035,1707330511639,-500.0,0.00046986,31]
[313421036,1707330511663,-252.1008393,0.00046986,31]
[313421037,1707330511688,-500.0,0.00046986,30]
[313421038,1707330511712,-500.0,0.00046986,31]
[313421039,1707330511738,-500.0,0.00046986,31]
[313421040,1707330511763,-500.0,0.00046986,31]
[313421041,1707330511788,-500.0,0.00046986,31]
[313421042,1707330511813,-500.0,0.00046986,31]
[313421043,1707330511837,-500.0,0.00046986,31]
[313421044,1707330511862,-500.0,0.00046986,31]
[313421045,1707330512184,-500.0,0.00046986,31]
[313421046,1707330512209,-500.0,0.00046986,120]
[313421047,1707330512233,-500.0,0.00046986,31]
[313421048,1707330512262,-500.0,0.00046986,31]
[313421049,1707330512288,-605.54,0.00046986,31]
[313421050,1707330512316,-500.0,0.00046986,31]
[313421051,1707330512341,-500.0,0.00046986,31]
[313421052,1707330512366,-500.0,0.00046986,31]
[313421053,1707330512394,-500.0,0.00046986,31]
[313421054,1707330512418,-500.0,0.00046986,31]
[313421055,1707330512442,-500.0,0.00046986,31]
[313421056,1707330512466,-500.0,0.00046986,31]
[313421057,1707330512492,-500.0,0.00046986,31]
[313421058,1707330512516,-500.0,0.00046986,31]
[313421059,1707330512540,-500.0,0.00046986,31]
[313421060,1707330512563,-500.0,0.00046986,31]
[313421061,1707330512587,-523.00418439,0.00046986,31]
[313421062,1707330512611,-500.0,0.00046986,31]
[313421063,1707330512637,-500.0,0.00046986,31]
[313421064,1707330512662,-500.0,0.00046986,31]
[313421065,1707330512687,-500.0,0.00046986,31]
[313421066,1707330512712,-550.56,0.00046986,31]
[313421067,1707330512737,-500.0,0.00046986,31]
[313421068,1707330512762,-500.0,0.00046986,31]
[313421069,1707330512787,-500.0,0.00046986,31]
[313421070,1707330512811,-2489.89,0.00046986,31]
[313421071,1707330512836,-500.0,0.00046986,31]
[313421072,1707330512860,-500.0,0.00046986,31]
[313421073,1707330512885,-592.64,0.00046986,31]
[313421074,1707330512910,-500.0,0.00046986,31]
[313421075,1707330512936,-500.0,0.00046986,31]
[313421076,1707330512961,-500.0,0.00046986,31]
[313421077,1707330512986,-503.61,0.00046986,31]
[313421078,1707330513012,-500.0,0.00046986,31]
[313421079,1707330513036,-683.5,0.00046986,31]
[313421080,1707330513060,-500.0,0.00046986,31]
[313421081,1707330513085,-500.0,0.00046986,31]
[313421082,1707330513110,-1386.26,0.00046986,31]
[313421083,1707330513135,-240.28938919,0.00046986,31]
[313421084,1707330513160,-500.0,0.00046986,31]
[313421085,1707330513184,-500.0,0.00046986,31]
[313421086,1707330513210,-500.0,0.00046986,31]
[313421087,1707330513234,-500.0,0.00046986,31]
[313421088,1707330513260,-500.0,0.00046986,31]
[313421089,1707330513284,-500.0,0.00046986,31]
[313421090,1707330513311,-1030.99,0.00046986,31]
[313421091,1707330513336,-500.0,0.00046986,31]
[313421092,1707330513360,-500.0,0.00046986,31]
[313421093,1707330513386,-521.39,0.00046986,31]
[313421094,1707330513410,-500.0,0.00046986,31]
[313421095,1707330513434,-500.0,0.00046986,31]
[313421096,1707330513459,-500.0,0.00046986,31]
[313421097,1707330513485,-1196.13,0.00046986,31]
[313421098,1707330513510,-500.0,0.00046986,31]
[313421099,1707330513535,-500.0,0.00046986,31]
[313421100,1707330513559,-500.0,0.00046986,31]
[313421101,1707330513583,-500.0,0.00046986,31]
[313421102,1707330513606,-500.0,0.00046986,31]
[313421103,1707330513629,-500.0,0.00046986,31]
[313421104,1707330513653,-500.0,0.00046986,31]
[313421105,1707330513677,-500.0,0.00046986,31]
[313421106,1707330513700,-748.87,0.00046986,31]
[313421107,1707330513723,-985.77,0.00046986,31]
[313421108,1707330513747,-500.0,0.00046986,31]
[313421109,1707330513772,-1213.03,0.00046986,31]
[313421110,1707330513796,-500.0,0.00046986,31]
[313421111,1707330513821,-500.0,0.00046986,31]
[313421112,1707330513845,-617.1,0.00046986,31]
[313421113,1707330513868,-500.0,0.00046986,31]
[313421114,1707330513893,-500.0,0.00046986,31]
[313421115,1707330513921,-500.0,0.00046986,31]
[313421116,1707330513949,-500.0,0.00046986,31]
[313421117,1707330513973,-500.0,0.00046986,31]
[313421118,1707330513997,-500.0,0.00046986,31]
[313421119,1707330514021,-866.37,0.00046986,31]
[313421120,1707330514047,-500.0,0.00046986,31]
[313421121,1707330514071,-500.0,0.00046986,31]
[313421122,1707330514096,-1970.33,0.00046986,31]
[313421123,1707330514121,-500.0,0.00046986,31]
[313421124,1707330514145,-500.0,0.00046986,31]
[313421125,1707330514170,-500.0,0.00046986,31]
[313421126,1707330514194,-500.0,0.00046986,31]
[313421127,1707330514219,-500.0,0.00046986,31]
[313421128,1707330514243,-500.0,0.00046986,31]
[313421129,1707330514271,-500.0,0.00046986,31]
[313421130,1707330514300,-501.79,0.00046986,31]
[313421131,1707330514325,-500.0,0.00046986,31]
[313421132,1707330514350,-500.0,0.00046986,31]
[313421133,1707330514374,-500.0,0.00046986,31]
[313421134,1707330514400,-1142.43,0.00046986,31]
[313421135,1707330514425,-500.0,0.00046986,31]
[313421136,1707330514449,-500.0,0.00046986,31]
[313421137,1707330514473,-500.0,0.00046986,31]
[313421138,1707330514497,-738.34,0.00046986,31]
[313421139,1707330514521,-500.0,0.00046986,31]
[313421140,1707330514545,-1000.0,0.00046986,30]
[313421141,1707330514569,-695.18,0.00046986,31]
[313421142,1707330514592,-482.33365517,0.00046986,31]
[313421143,1707330514618,-500.0,0.00046986,31]
[313421144,1707330514642,-500.0,0.00046986,31]
[313421145,1707330514666,-500.0,0.00046986,31]
[313421146,1707330514690,-546.06,0.00046986,31]
[313421147,1707330514715,-500.0,0.00046986,31]
[313421148,1707330514738,-797.57,0.00046986,31]
[313421149,1707330514946,-500.0,0.00046986,31]
[313421150,1707330514974,-1903.37,0.00046986,31]
[313421151,1707330515013,-500.0,0.00046986,31]
[313421152,1707330515040,-1061.97,0.00046986,31]
[313421153,1707330515066,-500.0,0.00046986,31]
[313421154,1707330515091,-512.81557046,0.00046986,31]
[313421155,1707330515118,-500.0,0.00046986,31]
[313421156,1707330515145,-500.0,0.00046986,31]
[313421157,1707330515171,-500.0,0.00046986,31]
[313421158,1707330515197,-500.0,0.00046986,31]
[313421159,1707330515223,-600.08158138,0.00046986,31]
[313421160,1707330515250,-1000.0,0.00046986,31]
[313421161,1707330515275,-500.0,0.00046986,31]
[313421162,1707330515302,-2276.5,0.00046986,31]
[313421163,1707330515328,-500.0,0.00046986,31]
[313421164,1707330515355,-500.0,0.00046986,31]
[313421165,1707330515381,-500.0,0.00046986,31]
[313421166,1707330515409,-500.0,0.00046986,31]
[313421167,1707330515434,-500.0,0.00046986,31]
[313421168,1707330515461,-859.74,0.00046986,31]
[313421169,1707330515487,-500.0,0.00046986,31]
[313421170,1707330515512,-500.0,0.00046986,31]
[313421171,1707330515538,-623.18,0.00046986,31]
[313421172,1707330515564,-169.98704755,0.00046986,31]
[313421173,1707330515589,-500.0,0.00046986,31]
[313421174,1707330515615,-500.0,0.00046986,31]
[313421175,1707330515642,-500.0,0.00046986,31]
[313421176,1707330515667,-500.0,0.00046986,31]
[313421177,1707330515693,-500.0,0.00046986,31]
[313421178,1707330515719,-500.0,0.00046986,31]
[313421179,1707330515745,-586.07,0.00046986,31]
[313421180,1707330515771,-500.0,0.00046986,31]
[313421181,1707330515797,-500.0,0.00046986,31]
[313421182,1707330515823,-531.53,0.00046986,31]
[313421183,1707330515850,-500.0,0.00046986,31]
[313421184,1707330515876,-500.0,0.00046986,31]
[313421185,1707330515901,-540.75,0.00046986,31]
[313421186,1707330515926,-500.0,0.00046986,31]
[313421187,1707330515956,-1140.73,0.00046986,31]
[313421188,1707330515985,-500.0,0.00046986,31]
[313421189,1707330516011,-500.0,0.00046986,31]
[313421190,1707330516038,-500.0,0.00046986,31]
[313421191,1707330516169,-2110.96,0.00046986,31]
[313421192,1707330516197,-5100.19,0.00046986,31]
[313421193,1707330516224,-500.0,0.00046986,31]
[313421194,1707330516251,-500.0,0.00046986,31]
[313421195,1707330516277,-500.0,0.00046986,31]
[313421196,1707330516306,-500.0,0.00046986,31]
[313421197,1707330516334,-826.78,0.00046986,31]
[313421198,1707330516361,-604.8,0.00046986,31]
[313421199,1707330516388,-500.0,0.00046986,31]
[313421200,1707330516414,-500.0,0.00046986,31]
[313421201,1707330516441,-690.26,0.00046986,31]
[313421202,1707330516467,-590.4,0.00046986,31]
[313421203,1707330516494,-500.0,0.00046986,31]
[313421204,1707330516520,-500.0,0.00046986,31]
[313421205,1707330516546,-500.0,0.00046986,31]
[313421206,1707330516572,-500.0,0.00046986,31]
[313421207,1707330516599,-500.0,0.00046986,31]
[313421208,1707330516626,-500.0,0.00046986,31]
[313421209,1707330516652,-3110.14,0.00046986,31]
[313421210,1707330516680,-1013.12,0.00046986,31]
[313421211,1707330516707,-500.0,0.00046986,31]
[313421212,1707330516736,-762.97,0.00046986,31]
[313421213,1707330516763,-1253.08,0.00046986,31]
[313421214,1707330516788,-500.0,0.00046986,31]
[313421215,1707330516814,-590.1,0.00046986,31]
[313421216,1707330516839,-175.38563577,0.00046986,31]
[313421217,1707330516864,-500.0,0.00046986,31]
[313421218,1707330516893,-500.0,0.00046986,31]
[313421219,1707330516918,-500.0,0.00046986,31]
[313421220,1707330516944,-500.0,0.00046986,31]
[313421221,1707330516970,-500.0,0.00046986,31]
[313421222,1707330516997,-500.0,0.00046986,31]
[313421223,1707330517024,-1334.35,0.00046986,31]
[313421224,1707330517050,-500.0,0.00046986,31]
[313421225,1707330517075,-1234.51,0.00046986,31]
[313421226,1707330517103,-1126.78,0.00046986,31]
[313421227,1707330517130,-500.0,0.00046986,31]
[313421228,1707330517158,-435.77562813,0.00046986,31]
[313421229,1707330517183,-500.0,0.00046986,31]
[313421230,1707330517208,-910.87,0.00046986,31]
[313421231,1707330517233,-500.0,0.00046986,31]
[313421232,1707330517259,-500.0,0.00046986,31]
[313421233,1707330517286,-638.99,0.00046986,31]
[313421234,1707330517314,-5470.6,0.00046986,31]
[313421235,1707330517340,-500.0,0.00046986,31]
[313421236,1707330517366,-500.0,0.00046986,31]
[313421237,1707330517392,-1317.55,0.00046986,31]
[313421238,1707330517418,-673.32,0.00046986,31]
[313421239,1707330517442,-565.7,0.00046986,31]
[313421240,1707330517467,-500.0,0.00046986,31]
[313421241,1707330517492,-559.65027626,0.00046986,31]
[313421242,1707330517517,-500.0,0.00046986,31]
[313421243,1707330517544,-1027.86,0.00046986,31]
[313421244,1707330517569,-500.0,0.00046986,31]
[313421245,1707330517595,-543.86,0.00046986,31]
[313421246,1707330517622,-863.51,0.00046986,31]
[313421247,1707330517647,-500.0,0.00046986,31]
[313421248,1707330517678,-681.27,0.00046986,31]
[313421249,1707330517706,-500.0,0.00046986,31]
[313421250,1707330517735,-580.46,0.00046986,31]
[313421251,1707330517762,-500.0,0.00046986,31]
[313421252,1707330517788,-872.39,0.00046986,31]
[313421253,1707330518037,-628.04,0.00046986,31]
[313421254,1707330518064,-500.0,0.00046986,31]
[313421255,1707330518090,-827.69,0.00046986,31]
[313421256,1707330518115,-649.05,0.00046986,31]
[313421257,1707330518142,-824.08,0.00046986,31]
[313421258,1707330518167,-500.0,0.00046986,31]
[313421259,1707330518192,-500.0,0.00046986,31]
[313421260,1707330518216,-500.0,0.00046986,31]
[313421261,1707330518241,-573.93,0.00046986,31]
[313421262,1707330518265,-500.0,0.00046986,31]
[313421263,1707330518293,-1205.86,0.00046986,31]
[313421264,1707330518318,-500.0,0.00046986,31]
[313421265,1707330518343,-589.55116213,0.00046986,31]
[313421266,1707330518370,-500.0,0.00046986,31]
[313421267,1707330518396,-500.0,0.00046986,31]
[313421268,1707330518419,-915.55,0.00046986,31]
[313421269,1707330518445,-1305.46,0.00046986,31]
[313421270,1707330518470,-1430.98,0.00046986,31]
[313421271,1707330518494,-500.0,0.00046986,31]
[313421272,1707330518518,-500.0,0.00046986,31]
[313421273,1707330518542,-500.0,0.00046986,31]
[313421274,1707330518566,-500.0,0.00046986,31]
[313421275,1707330518590,-1071.66,0.00046986,31]
[313421276,1707330518614,-500.0,0.00046986,31]
[313421277,1707330518638,-1079.58,0.00046986,31]
[313421278,1707330518662,-500.0,0.00046986,31]
[313421279,1707330518686,-500.0,0.00046986,31]
[313421280,1707330518710,-500.0,0.00046986,31]
[313421281,1707330518734,-641.29,0.00046986,31]
[313421282,1707330518758,-500.0,0.00046986,31]
[313421283,1707330518783,-500.0,0.00046986,31]
[313421284,1707330518808,-500.0,0.00046986,31]
[313421285,1707330518832,-566.8,0.00046986,31]
[313421286,1707330518858,-13119.16,0.00046986,31]
[313421287,1707330518883,-1211.92,0.00046986,31]
[313421288,1707330518907,-500.0,0.00046986,31]
[313421289,1707330518930,-500.0,0.00046986,31]
[313421290,1707330518954,-1193.33,0.00046986,31]
[313421291,1707330518979,-1075.08,0.00046986,31]
[313421292,1707330519004,-500.0,0.00046986,31]
[313421293,1707330519029,-1079.91,0.00046986,31]
[313421294,1707330519053,-1061.28,0.00046986,31]
[313421295,1707330519079,-984.32,0.00046986,31]
[313421296,1707330519104,-1181.81,0.00046986,31]
[313421297,1707330519130,-500.0,0.00046986,31]
[313421298,1707330519156,-656.79,0.00046986,31]
[313421299,1707330519184,-500.0,0.00046986,31]
[313421300,1707330519211,-500.0,0.00046986,31]
[313421301,1707330519239,-610.13,0.00046986,31]
[313421302,1707330519270,-500.0,0.00046986,31]
[313421303,1707330519299,-500.0,0.00046986,31]
[313421304,1707330519327,-500.0,0.00046986,31]
[313421305,1707330519355,-500.0,0.00046986,31]
[313421306,1707330519384,-500.0,0.00046986,31]
[313421307,1707330519410,-3312.54,0.00046986,31]
[313421308,1707330519435,-500.0,0.00046986,31]
[313421309,1707330519462,-981.99,0.00046986,31]
[313421310,1707330519487,-989.83,0.00046986,31]
[313421311,1707330519512,-500.0,0.00046986,31]
[313421312,1707330519537,-1182.09,0.00046986,31]
[313421313,1707330519563,-500.0,0.00046986,31]
[313421314,1707330519592,-500.0,0.00046986,31]
[313421315,1707330519618,-1127.5,0.00046986,31]
[313421316,1707330519643,-162.96974462,0.00046986,31]
[313421317,1707330519668,-500.0,0.00046986,31]
[313421318,1707330519693,-1091.93,0.00046986,31]
[313421319,1707330519718,-1016.26,0.00046986,31]
[313421320,1707330519746,-500.0,0.00046986,31]
[313421321,1707330519774,-500.0,0.00046986,31]
[313421322,1707330519800,-500.0,0.00046986,31]
[313421323,1707330519826,-500.0,0.00046986,31]
[313421324,1707330519852,-500.0,0.00046986,31]
[313421325,1707330519878,-500.0,0.00046986,31]
[313421326,1707330519906,-491.953268,0.00046986,31]
[313421327,1707330519932,-866.94,0.00046986,31]
[313421328,1707330519956,-944.6,0.00046986,31]
[313421329,1707330519979,-500.0,0.00046986,31]
[313421330,1707330520004,-1249.45,0.00046986,31]
[313421331,1707330520028,-520.7,0.00046986,31]
[313421332,1707330520051,-500.0,0.00046986,31]
[313421333,1707330520077,-527.04,0.00046986,31]
[313421334,1707330520103,-978.95,0.00046986,31]
[313421335,1707330520128,-584.15,0.00046986,31]
[313421336,1707330520154,-913.9,0.00046986,31]
[313421337,1707330520178,-500.0,0.00046986,31]
[313421338,1707330520203,-500.0,0.00046986,31]
[313421339,1707330520228,-1320.52,0.00046986,31]
[313421340,1707330520253,-500.0,0.00046986,31]
[313421341,1707330520278,-289.08231801,0.00046986,31]
[313421342,1707330520305,-514.28,0.00046986,31]
[313421343,1707330520330,-576.82,0.00046986,31]
[313421344,1707330520355,-500.0,0.00046986,31]
[313421345,1707330520380,-498.55063196,0.00046986,31]
[313421346,1707330520405,-1039.46,0.00046986,31]
[313421347,1707330520435,-500.0,0.00046986,31]
[313421348,1707330520461,-500.0,0.00046986,31]
[313421349,1707330520487,-500.0,0.00046986,31]
[313421350,1707330520515,-509.73442925,0.00046986,31]
[313421351,1707330520539,-500.0,0.00046986,31]
[313421352,1707330520565,-500.0,0.00046986,31]
[313421353,1707330520592,-955.86,0.00046986,31]
[313421354,1707330520617,-1136.87,0.00046986,31]
[313421355,1707330520642,-519.3,0.00046986,31]
[313421356,1707330520668,-929.96,0.00046986,31]
[313421357,1707330520868,-500.0,0.00046986,31]
[313421358,1707330520905,-514.64,0.00046986,31]
[313421359,1707330520936,-500.0,0.00046986,31]
[313421360,1707330520965,-500.0,0.00046986,31]
[313421361,1707330520997,-500.0,0.00046986,31]
[313421362,1707330521026,-595.3590273,0.00046986,31]
[313421363,1707330521054,-500.0,0.00046986,31]
[313421364,1707330521083,-500.0,0.00046986,31]
[313421365,1707330521111,-500.0,0.00046986,31]
[313421366,1707330521156,-500.0,0.00046986,31]
[313421367,1707330521189,-500.0,0.00046986,31]
[313421368,1707330521220,-933.01,0.00046986,31]
[313421369,1707330521253,-500.0,0.00046986,31]
[313421370,1707330521284,-500.0,0.00046986,31]
[313421371,1707330521312,-786.99,0.00046986,31]
[313421372,1707330521341,-1428.21,0.00046986,31]
[313421373,1707330521369,-1003.21,0.00046986,31]
[313421374,1707330521397,-500.0,0.00046986,31]
[313421375,1707330521426,-837.68,0.00046986,31]
[313421376,1707330521453,-500.0,0.00046986,31]
[313421377,1707330521481,-500.0,0.00046986,31]
[313421378,1707330521511,-500.0,0.00046986,31]
[313421379,1707330521537,-193.76789963,0.00046986,31]
[313421380,1707330521564,-500.0,0.00046986,31]
[313421381,1707330521590,-556.43,0.00046986,31]
[313421382,1707330521618,-425.49146965,0.00046986,31]
[313421383,1707330521645,-500.0,0.00046986,31]
[313421384,1707330521672,-500.0,0.00046986,31]
[313421385,1707330521698,-500.0,0.00046986,31]
[313421386,1707330521723,-500.0,0.00046986,31]
[313421387,1707330521752,-938.95,0.00046986,31]
[313421388,1707330521783,-599.1,0.00046986,31]
[313421389,1707330521810,-500.0,0.00046986,31]
[313421390,1707330521837,-1035.19,0.00046986,31]
[313421391,1707330521864,-500.0,0.00046986,31]
[313421392,1707330521892,-834.43,0.00046986,31]
[313421393,1707330521918,-898.3,0.00046986,31]
[313421394,1707330521943,-178.56643074,0.00046986,31]
[313421395,1707330521969,-500.0,0.00046986,31]
[313421396,1707330521995,-277.89672637,0.00046986,31]
[313421397,1707330522022,-500.0,0.00046986,31]
[313421398,1707330522048,-1824.24,0.00046986,31]
[313421399,1707330522074,-500.0,0.00046986,31]
[313421400,1707330522100,-500.0,0.00046986,31]
[313421401,1707330522127,-500.0,0.00046986,31]
[313421402,1707330522154,-1258.83,0.00046986,31]
[313421403,1707330522184,-500.0,0.00046986,31]
[313421404,1707330522211,-500.0,0.00046986,31]
[313421405,1707330522238,-500.0,0.00046986,31]
[313421406,1707330522267,-1485.55,0.00046986,31]
[313421407,1707330522294,-500.0,0.00046986,31]
[313421408,1707330522325,-500.0,0.00046986,31]
[313421409,1707330522352,-500.0,0.00046986,31]
[313421410,1707330522381,-703.64,0.00046986,31]
[313421411,1707330522408,-856.57,0.00046986,31]
[313421412,1707330522434,-500.0,0.00046986,31]
[313421413,1707330522461,-937.23,0.00046986,31]
[313421414,1707330522488,-500.0,0.00046986,31]
[313421415,1707330522516,-500.0,0.00046986,31]
[313421416,1707330522541,-500.0,0.00046986,31]
[313421417,1707330522567,-529.38,0.00046986,31]
[313421418,1707330522592,-926.32,0.00046986,31]
[313421419,1707330522618,-500.0,0.00046986,31]
[313421420,1707330522644,-528.12494267,0.00046986,31]
[313421421,1707330522670,-814.46,0.00046986,31]
[313421422,1707330522694,-500.0,0.00046986,31]
[313421423,1707330522719,-1877.02,0.00046986,31]
[313421424,1707330522747,-500.0,0.00046986,31]
[313421425,1707330522772,-345.27826768,0.00046986,31]
[313421426,1707330522798,-941.51,0.00046986,31]
[313421427,1707330522825,-500.0,0.00046986,31]
[313421428,1707330522851,-1288.36,0.00046986,31]
[313421429,1707330522876,-500.0,0.00046986,31]
[313421430,1707330522901,-500.0,0.00046986,31]
[313421431,1707330522927,-510.87,0.00046986,31]
[313421432,1707330522951,-500.0,0.00046986,31]
[313421433,1707330522976,-811.03,0.00046986,31]
[313421434,1707330523002,-667.25,0.00046986,31]
[313421435,1707330523027,-500.0,0.00046986,31]
[313421436,1707330523053,-500.0,0.00046986,31]
[313421437,1707330523079,-500.0,0.00046986,31]
[313421438,1707330523104,-1011.37,0.00046986,31]
[313421439,1707330523129,-305.78769581,0.00046986,31]
[313421440,1707330523155,-504.36,0.00046986,31]
[313421441,1707330523180,-922.41,0.00046986,31]
[313421442,1707330523206,-522.07,0.00046986,31]
[313421443,1707330523231,-500.0,0.00046986,31]
[313421444,1707330523256,-500.0,0.00046986,31]
[313421445,1707330523281,-500.0,0.00046986,31]
[313421446,1707330523312,-500.0,0.00046986,31]
[313421447,1707330523338,-500.0,0.00046986,31]
[313421448,1707330523364,-552.53,0.00046986,31]
[313421449,1707330523389,-1318.04,0.00046986,31]
[313421450,1707330523414,-500.0,0.00046986,31]
[313421451,1707330523439,-1071.7,0.00046986,31]
[313421452,1707330523464,-500.0,0.00046986,31]
[313421453,1707330523490,-500.0,0.00046986,31]
[313421454,1707330523515,-500.0,0.00046986,31]
[313421455,1707330523540,-500.0,0.00046986,31]
[313421456,1707330523565,-500.0,0.00046986,31]
[313421457,1707330523589,-974.65,0.00046986,31]
[313421458,1707330523615,-153.92675254,0.00046986,31]
[313421459,1707330523641,-811.51,0.00046986,31]
[313421460,1707330523666,-500.0,0.00046986,31]
[313421461,1707330523690,-1464.8,0.00046986,31]
[313421462,1707330523939,-530.39,0.00046986,31]
[313421463,1707330523967,-500.0,0.00046986,31]
[313421464,1707330523991,-500.0,0.00046986,31]
[313421465,1707330524016,-500.0,0.00046986,31]
[313421466,1707330524043,-683.79,0.00046986,31]
[313421467,1707330524068,-500.0,0.00046986,31]
[313421468,1707330524093,-500.0,0.00046986,31]
[313421469,1707330524116,-508.47,0.00046986,31]
[313421470,1707330524141,-500.0,0.00046986,31]
[313421471,1707330524166,-500.0,0.00046986,31]
[313421472,1707330524191,-500.0,0.00046986,31]
[313421473,1707330524215,-746.86,0.00046986,31]
[313421474,1707330524240,-581.08,0.00046986,31]
[313421475,1707330524265,-500.0,0.00046986,31]
[313421476,1707330524290,-500.0,0.00046986,31]
[313421477,1707330524317,-500.0,0.00046986,31]
[313421478,1707330524341,-500.0,0.00046986,31]
[313421479,1707330524366,-946.6,0.00046986,31]
[313421480,1707330524391,-500.0,0.00046986,31]
[313421481,1707330524416,-1116.34,0.00046986,31]
[313421482,1707330524439,-150.0,0.00046986,31]
[313421483,1707330524463,-500.0,0.00046986,31]
[313421484,1707330524487,-500.0,0.00046986,31]
[313421485,1707330524512,-500.0,0.00046986,31]
[313421486,1707330524535,-500.0,0.00046986,31]
[313421487,1707330524560,-500.0,0.00046986,31]
[313421488,1707330524584,-1621.88,0.00046986,31]
[313421489,1707330524609,-1000.0,0.00046986,30]
[313421490,1707330524634,-968.71,0.00046986,31]
[313421491,1707330524658,-500.0,0.00046986,31]
[313421492,1707330524683,-972.03,0.00046986,31]
[313421493,1707330524707,-500.0,0.00046986,31]
[313421494,1707330524733,-674.02,0.00046986,31]
[313421495,1707330524758,-707.2,0.00046986,31]
[313421496,1707330524784,-528.11,0.00046986,31]
[313421497,1707330524810,-500.0,0.00046986,31]
[313421498,1707330524835,-500.0,0.00046986,31]
[313421499,1707330524860,-1070.7,0.00046986,31]
[313421500,1707330524884,-500.0,0.00046986,31]
[313421501,1707330524909,-500.0,0.00046986,31]
[313421502,1707330524934,-500.0,0.00046986,31]
[313421503,1707330524960,-2700.43,0.00046986,31]
[313421504,1707330524985,-563.85,0.00046986,31]
[313421505,1707330525010,-500.0,0.00046986,31]
[313421506,1707330525035,-500.0,0.00046986,31]
[313421507,1707330525061,-500.0,0.00046986,31]
[313421508,1707330525086,-500.0,0.00046986,31]
[313421509,1707330525110,-500.0,0.00046986,31]
[313421510,1707330525135,-500.0,0.00046986,31]
[313421511,1707330525161,-500.0,0.00046986,31]
[313421512,1707330525185,-500.0,0.00046986,31]
[313421513,1707330525210,-786.94,0.00046986,31]
[313421514,1707330525236,-871.97,0.00046986,31]
[313421515,1707330525262,-500.0,0.00046986,31]
[313421516,1707330525288,-1010.93,0.00046986,31]
[313421517,1707330525317,-500.0,0.00046986,30]
[313421518,1707330525343,-1040.21,0.00046986,31]
[313421519,1707330525367,-608.39,0.00046986,31]
[313421520,1707330525392,-500.0,0.00046986,31]
[313421521,1707330525417,-500.0,0.00046986,31]